bitfinex-derivatives/quotes_BTCF0:USTF0_20250722
["timestamp","ask_amount","ask_price","bid_price","bid_amount"]
[1753181344446,0.55125839,118830.0,118820.0,0.43183185]
[1753181344648,0.55125839,118830.0,118820.0,0.11183185]
[1753181344848,0.55125839,118830.0,118820.0,0.47183185]
[1753181345050,0.55125839,118830.0,118820.0,0.11183185]
[1753181345955,0.55125839,118830.0,118820.0,0.47263185]
[1753181346754,0.27057807,118830.0,118820.0,0.47263185]
[1753181346952,0.55125839,118830.0,118820.0,0.47263185]
[1753181347163,0.55125839,118830.0,118820.0,0.83263185]
[1753181347453,0.55125839,118830.0,118820.0,0.47263185]
[1753181349551,0.55125839,118830.0,118820.0,0.49522298]
[1753181349758,0.55125839,118830.0,118820.0,0.08884185]
[1753181350745,0.55125839,118830.0,118820.0,0.08224185]
[1753181351049,0.55125839,118830.0,118820.0,0.10483298]
[1753181352449,0.55125839,118830.0,118820.0,0.13582298]
[1753181352756,0.55125839,118830.0,118820.0,0.49662298]
[1753181353642,0.55125839,118830.0,118820.0,0.13582298]
[1753181355954,0.55125839,118830.0,118820.0,0.11125298]
[1753181356751,0.55125839,118830.0,118820.0,0.10483298]
[1753181360048,0.55125839,118830.0,118820.0,0.04573298]
[1753181360248,0.91205839,118830.0,118820.0,0.04573298]
[1753181360757,1.03825651,118830.0,118820.0,0.04573298]
[1753181364560,0.67745651,118830.0,118820.0,0.49513298]
[1753181364759,0.55125839,118830.0,118820.0,0.85513298]
[1753181365056,0.55125839,118830.0,118820.0,0.88519759]
[1753181365251,0.55125839,118830.0,118820.0,1.05344919]
[1753181365650,0.55125839,118830.0,118820.0,1.03085806]
[1753181365852,0.22445807,118830.0,118820.0,1.07605314]
[1753181366050,0.18290807,118830.0,118820.0,1.04598853]
[1753181367258,0.48839839,118830.0,118820.0,1.04598853]
[1753181368259,0.48839839,118830.0,118820.0,0.87773693]
[1753181368457,0.48839839,118830.0,118820.0,1.04598853]
[1753181368861,0.46358839,118830.0,118820.0,1.04598853]
[1753181369357,0.46358839,118830.0,118820.0,0.87773693]
[1753181369654,0.48839839,118830.0,118820.0,0.87773693]
[1753181369957,0.55308839,118830.0,118820.0,0.89773693]
[1753181370357,0.55308839,118830.0,118820.0,0.92787267]
[1753181370960,0.55308839,118830.0,118820.0,0.88267759]
[1753181371559,0.55308839,118830.0,118820.0,1.09612427]
[1753181372061,0.55308839,118830.0,118820.0,0.92787267]
[1753181372263,0.55308839,118830.0,118820.0,1.09612437]
[1753181372564,0.55308839,118830.0,118820.0,0.92787267]
[1753181373069,0.55308839,118830.0,118820.0,1.05092929]
[1753181373560,0.55308839,118830.0,118820.0,0.92787267]
[1753181373862,0.55308839,118830.0,118820.0,1.05092919]
[1753181374058,0.55308839,118830.0,118820.0,1.09612427]
[1753181375165,0.52345839,118830.0,118820.0,1.09612427]
[1753181375365,0.50445839,118830.0,118820.0,1.09612427]
[1753181375566,0.46358839,118830.0,118820.0,1.06598853]
[1753181375768,0.18290807,118830.0,118820.0,1.06598853]
[1753181376062,0.46358839,118830.0,118820.0,1.06598853]
[1753181376668,0.48839839,118830.0,118820.0,1.06598853]
[1753181377364,0.48839839,118830.0,118820.0,1.06602056]
[1753181377659,0.47149782,118830.0,118820.0,1.06602056]
[1753181378965,0.48755782,118830.0,118820.0,1.06602056]
[1753181379165,0.49770782,118830.0,118820.0,1.06602056]
[1753181379464,0.51330782,118830.0,118820.0,1.06602056]
[1753181380062,0.51330782,118830.0,118820.0,1.05096987]
[1753181381064,0.51330782,118830.0,118820.0,1.09616495]
[1753181383365,0.53829782,118830.0,118820.0,1.09616495]
[1753181385669,0.53829782,118830.0,118820.0,0.92791335]
[1753181386478,0.53829782,118830.0,118820.0,0.88271827]
[1753181386674,0.53829782,118830.0,118820.0,1.05096987]
[1753181387279,0.53829782,118830.0,118820.0,1.09616495]
[1753181388672,0.53829782,118830.0,118820.0,0.90473947]
[1753181389478,0.53829782,118830.0,118820.0,0.52473947]
[1753181389678,0.53829782,118830.0,118820.0,0.87473947]
[1753181390580,0.53829782,118830.0,118820.0,1.04299107]
[1753181390778,0.53829782,118830.0,118820.0,0.87473947]
[1753181390979,0.53829782,118830.0,118820.0,0.82201628]
[1753181391280,0.53829782,118830.0,118820.0,0.85216067]
[1753181391579,0.53829782,118830.0,118820.0,0.82201628]
[1753181391580,0.2576175,118830.0,118820.0,0.82201628]
[1753181391778,0.53829782,118830.0,118820.0,0.82201628]
[1753181392279,0.53829782,118830.0,118820.0,0.85216067]
[1753181392975,0.53829782,118830.0,118820.0,1.02041227]
[1753181393277,0.49095782,118830.0,118820.0,1.02041227]
[1753181393471,0.1660075,118830.0,118820.0,1.02041227]
[1753181393779,0.47005782,118830.0,118820.0,1.02041227]
[1753181393979,0.49016782,118830.0,118820.0,1.02041227]
[1753181394282,0.53676782,118830.0,118820.0,0.99779599]
[1753181396281,0.53676782,118830.0,118820.0,0.82954439]
[1753181396483,0.2560875,118830.0,118820.0,0.82954439]
[1753181396681,0.53676782,118830.0,118820.0,0.82954439]
[1753181398284,0.53676782,118830.0,118820.0,0.99779599]
[1753181399290,0.53676782,118830.0,118820.0,0.82954439]
[1753181400880,0.53676782,118830.0,118820.0,0.49459508]
[1753181402885,0.53676782,118830.0,118820.0,0.66284668]
[1753181403085,0.53676782,118830.0,118820.0,0.49459508]
[1753181404390,0.53676782,118830.0,118820.0,0.66284668]
[1753181404786,0.53676782,118830.0,118820.0,1.01284668]
[1753181406189,0.53676782,118830.0,118820.0,0.66284668]
[1753181406397,0.53676782,118830.0,118820.0,1.03284668]
[1753181406589,0.44668782,118830.0,118820.0,1.03284668]
[1753181406890,0.1660075,118830.0,118820.0,1.03284668]
[1753181407079,0.44668782,118830.0,118820.0,1.03284668]
[1753181407490,0.47005782,118830.0,118820.0,1.03284668]
[1753181407793,0.48666782,118830.0,118820.0,1.03284668]
[1753181408798,0.2059875,118830.0,118820.0,1.03284668]
[1753181408987,0.48666782,118830.0,118820.0,1.03284668]
[1753181409292,0.2059875,118830.0,118820.0,1.03284668]
[1753181409586,0.48666782,118830.0,118820.0,1.03284668]
[1753181411086,0.46329782,118830.0,118820.0,1.03284668]
[1753181411594,0.48706782,118830.0,118820.0,1.03284668]
[1753181415197,0.41683431,118830.0,118820.0,1.03284668]
[1753181417397,0.2063875,118830.0,118820.0,1.03284668]
[1753181417597,0.37645431,118830.0,118820.0,1.24329349]
[1753181417794,0.37645431,118830.0,118820.0,1.03284668]
[1753181417991,0.37645431,118830.0,118820.0,1.03291914]
[1753181418191,0.37645431,118830.0,118820.0,0.9876516]
[1753181418393,0.40022431,118830.0,118820.0,0.9876516]
[1753181419589,0.41611431,118830.0,118820.0,0.9876516]
[1753181420296,0.41611431,118830.0,118820.0,1.03291126]
[1753181420993,0.41611431,118830.0,118820.0,1.03291054]
[1753181421692,0.42273431,118830.0,118820.0,1.03291054]
[1753181422090,0.42603431,118830.0,118820.0,1.03291054]
[1753181422292,0.44198431,118830.0,118820.0,1.03291054]
[1753181424495,0.46688431,118830.0,118820.0,1.03291054]
[1753181424695,0.46688431,118830.0,118820.0,1.00291054]
[1753181427499,0.2564375,118830.0,118820.0,1.00291054]
[1753181427700,0.46688431,118830.0,118820.0,1.00291054]
[1753181429909,0.46688431,118830.0,118820.0,1.00291054]
[1753181431006,0.46688431,118830.0,118820.0,0.98781173]
[1753181432509,0.46688431,118830.0,118820.0,1.03307067]
[1753181432697,0.2564375,118830.0,118820.0,1.03307067]
[1753181432898,0.46688431,118830.0,118820.0,1.03307067]
[1753181434405,0.46688431,118830.0,118820.0,0.98781173]
[1753181435612,0.46688431,118830.0,118820.0,0.95781173]
[1753181436316,0.46688431,118830.0,118820.0,1.00307067]
[1753181438512,0.2564375,118830.0,118820.0,0.69307067]
[1753181438810,0.46688431,118830.0,118820.0,1.00307067]
[1753181439216,0.46688431,118830.0,118820.0,0.69307067]
[1753181439412,0.46688431,118830.0,118820.0,1.06307067]
[1753181440513,0.46688431,118830.0,118820.0,1.01781173]
[1753181441120,0.46688431,118830.0,118820.0,1.04291054]
[1753181441312,0.46688431,118830.0,118820.0,0.66291054]
[1753181441513,0.46688431,118830.0,118820.0,1.00291054]
[1753181441813,0.46688431,118830.0,118820.0,0.66291054]
[1753181442020,0.46688431,118830.0,118820.0,1.01291054]
[1753181442428,0.1897775,118830.0,118820.0,1.22335735]
[1753181442615,0.37645431,118830.0,118820.0,1.22335735]
[1753181444016,0.40079431,118830.0,118820.0,1.22335735]
[1753181444416,0.40079431,118830.0,118820.0,1.01291054]
[1753181446324,0.41735431,118830.0,118820.0,1.01291054]
[1753181447324,0.42048431,118830.0,118820.0,1.01291054]
[1753181447524,0.42665431,118830.0,118820.0,0.66291054]
[1753181447724,0.44232431,118830.0,118820.0,0.97291054]
[1753181447927,0.46678431,118830.0,118820.0,0.98291054]
[1753181450629,0.2563375,118830.0,118820.0,0.98291054]
[1753181450930,0.46678431,118830.0,118820.0,0.98291054]
[1753181451229,0.46678431,118830.0,118820.0,0.99291054]
[1753181454434,0.46678431,118830.0,118820.0,0.66291054]
[1753181454734,0.46678431,118830.0,118820.0,1.04291054]
[1753181456239,0.0002,118840.0,118830.0,0.1682372]
[1753181456536,0.23498681,118850.0,118840.0,0.256573]
[1753181456733,0.40299561,118850.0,118840.0,0.98754413]
[1753181456933,0.41955561,118850.0,118840.0,0.98754413]
[1753181457137,0.27014681,118850.0,118840.0,0.98754413]
[1753181457330,0.30077681,118850.0,118840.0,0.98754413]
[1753181457530,0.30077681,118850.0,118840.0,0.957373]
[1753181457838,0.30577681,118850.0,118840.0,0.957373]
[1753181458039,0.28131681,118850.0,118840.0,0.957373]
[1753181458239,0.28431681,118850.0,118840.0,1.00257676]
[1753181458838,0.28431681,118850.0,118840.0,1.06865209]
[1753181459028,0.27814681,118850.0,118840.0,1.06865209]
[1753181459830,0.0677,118850.0,118840.0,1.06865209]
[1753181460031,0.27814681,118850.0,118840.0,1.06865209]
[1753181460234,0.0677,118850.0,118840.0,1.06865209]
[1753181460437,0.21844681,118850.0,118840.0,1.2790989]
[1753181460742,0.21844681,118850.0,118840.0,1.06865209]
[1753181460942,0.21844681,118850.0,118840.0,1.2790989]
[1753181461241,0.21844681,118850.0,118840.0,1.28737624]
[1753181464344,0.21844681,118850.0,118840.0,1.07692943]
[1753181464645,0.27651681,118860.0,118850.0,0.2565588]
[1753181464944,0.44451151,118860.0,118850.0,1.13780561]
[1753181465142,0.44451151,118860.0,118850.0,1.16787978]
[1753181465748,0.27014681,118860.0,118850.0,1.16787978]
[1753181466047,0.43834141,118860.0,118850.0,1.16787978]
[1753181466450,0.2308946,118860.0,118850.0,0.95743297]
[1753181466747,0.65178822,118860.0,118850.0,0.95743297]
[1753181466935,0.65795822,118860.0,118850.0,0.95743297]
[1753181467444,0.66095822,118860.0,118850.0,0.95743297]
[1753181467742,0.65795822,118860.0,118850.0,0.95743297]
[1753181468040,0.65495822,118860.0,118850.0,0.96143297]
[1753181468246,0.67941822,118860.0,118850.0,0.96143297]
[1753181471746,0.67941822,118860.0,118850.0,0.65143297]
[1753181472747,0.67941822,118860.0,118850.0,0.96143297]
[1753181474443,0.67941822,118860.0,118850.0,1.02143297]
[1753181474643,0.67941822,118860.0,118850.0,0.65143297]
[1753181474945,0.67941822,118860.0,118850.0,1.03143297]
[1753181475349,0.51122362,118860.0,118850.0,1.03143297]
[1753181475546,0.67941822,118860.0,118850.0,1.03143297]
[1753181476046,0.51122362,118860.0,118850.0,1.03143297]
[1753181476441,0.67941822,118860.0,118850.0,1.03143297]
[1753181476742,0.67941822,118860.0,118850.0,1.24187978]
[1753181477041,0.09033,118860.0,118850.0,1.24187978]
[1753181477240,0.27014681,118860.0,118850.0,1.24187978]
[1753181477747,0.43834151,118860.0,118850.0,1.24187978]
[1753181477946,0.39520151,118860.0,118850.0,1.24187978]
[1753181478447,0.41842151,118860.0,118850.0,1.24187978]
[1753181478748,0.41842151,118860.0,118850.0,1.26501757]
[1753181479251,0.43771151,118860.0,118850.0,1.26501757]
[1753181479445,0.44396151,118860.0,118850.0,1.26501757]
[1753181479645,0.65440832,118860.0,118850.0,0.67457076]
[1753181479950,0.65440832,118860.0,118850.0,1.04457076]
[1753181480144,0.67929832,118860.0,118850.0,1.04457076]
[1753181480949,0.2584047,118860.0,118850.0,1.03704218]
[1753181481149,0.67929832,118860.0,118850.0,1.03704218]
[1753181481349,0.67929832,118860.0,118850.0,1.01449659]
[1753181481649,0.2584047,118860.0,118850.0,1.03179757]
[1753181481850,0.44396151,118860.0,118850.0,1.24224438]
[1753181482644,0.2335147,118860.0,118850.0,1.24224438]
[1753181482845,0.44396151,118860.0,118850.0,1.24224438]
[1753181483451,0.2335147,118860.0,118850.0,1.24224438]
[1753181483651,0.26951681,118860.0,118850.0,1.27231855]
[1753181484248,0.21044681,118860.0,118850.0,1.27231855]
[1753181484648,0.342305,118870.0,118860.0,0.2498244]
[1753181484848,0.55255181,118870.0,118860.0,1.01239889]
[1753181485050,0.51050361,118870.0,118860.0,0.98983219]
[1753181485552,0.51050361,118870.0,118860.0,1.2228457]
[1753181485752,0.51150361,118870.0,118860.0,1.2228457]
[1753181485953,0.51150361,118870.0,118860.0,1.01239889]
[1753181487256,0.48661361,118870.0,118860.0,1.2228457]
[1753181487451,0.43831791,118870.0,118860.0,1.2228457]
[1753181487755,0.21144681,118870.0,118860.0,1.25291987]
[1753181488055,0.37962701,118870.0,118860.0,1.25291987]
[1753181488257,0.37962701,118870.0,118860.0,1.25591987]
[1753181488556,0.40284701,118870.0,118860.0,1.25591987]
[1753181488958,0.40284701,118870.0,118860.0,0.69547306]
[1753181489144,0.2075702,118870.0,118860.0,1.23591987]
[1753181489453,0.2075702,118870.0,118860.0,1.23691987]
[1753181489653,0.41801701,118870.0,118860.0,1.03647306]
[1753181490250,0.2075702,118870.0,118860.0,0.69647306]
[1753181490556,0.59477641,118880.0,118870.0,0.2498102]
[1753181490851,0.59477641,118880.0,118870.0,0.66989216]
[1753181490852,0.80502322,118880.0,118870.0,0.66989216]
[1753181492856,0.80502322,118880.0,118870.0,0.67089216]
[1753181498362,0.80502322,118880.0,118870.0,0.50271196]
[1753181499564,0.80502322,118880.0,118870.0,0.67089216]
[1753181499862,0.80502322,118880.0,118870.0,0.50271196]
[1753181504859,1.01547003,118880.0,118870.0,0.47931196]
[1753181505054,1.01547003,118880.0,118870.0,0.45362196]
[1753181505055,1.03430193,118880.0,118870.0,0.45362196]
[1753181505260,1.03430193,118880.0,118870.0,0.41501196]
[1753181506464,1.03430193,118880.0,118870.0,0.40752733]
[1753181507155,1.03430193,118880.0,118870.0,0.38493779]
[1753181508168,1.03430193,118880.0,118870.0,0.40752888]
[1753181508965,1.03430193,118880.0,118870.0,0.04672888]
[1753181520974,1.03430193,118880.0,118870.0,0.02413779]
[1753181521476,0.82385512,118880.0,118870.0,0.04672888]
[1753181521676,1.03430193,118880.0,118870.0,0.04672888]
[1753181525788,0.82385512,118880.0,118870.0,0.04672888]
[1753181527088,0.4029615,118880.0,118870.0,0.04672888]
[1753181527390,0.82385512,118880.0,118870.0,0.04672888]
[1753181527879,0.4029615,118880.0,118870.0,0.04672888]
[1753181528084,0.82385512,118880.0,118870.0,0.04672888]
[1753181528390,0.4029615,118880.0,118870.0,0.04672888]
[1753181528589,0.82385512,118880.0,118870.0,0.04672888]
[1753181528990,0.82385512,118880.0,118870.0,0.02413779]
[1753181529192,1.03430193,118880.0,118870.0,0.02413779]
[1753181530889,1.03430193,118880.0,118870.0,0.07680305]
[1753181531493,0.4029615,118880.0,118870.0,0.07680305]
[1753181531694,1.03430193,118880.0,118870.0,0.07680305]
[1753181535291,0.4029615,118880.0,118870.0,0.07680305]
[1753181535489,1.03430193,118880.0,118870.0,0.07680305]
[1753181535691,1.03430193,118880.0,118870.0,0.05421196]
[1753181535888,0.1681802,118870.0,118860.0,0.3608]
[1753181536192,0.87909063,118870.0,118860.0,0.38408757]
[1753181536391,0.66864382,118870.0,118860.0,0.38408757]
[1753181536596,0.66864382,118870.0,118860.0,0.3608]
[1753181536797,0.1848244,118860.0,118850.0,0.45584474]
[1753181536988,0.1848244,118860.0,118850.0,0.50915474]
[1753181536989,0.66865802,118860.0,118850.0,0.50915474]
[1753181537190,0.66865802,118860.0,118850.0,0.52514474]
[1753181537799,0.87910483,118860.0,118850.0,0.52514474]
[1753181538098,0.87910483,118860.0,118850.0,0.50183474]
[1753181538298,0.87910483,118860.0,118850.0,0.48584474]
[1753181538497,0.87910483,118860.0,118850.0,0.43555376]
[1753181539499,0.87910483,118860.0,118850.0,0.07475376]
[1753181539695,0.87910483,118860.0,118850.0,0.07975376]
[1753181542899,0.2477644,118860.0,118850.0,0.03455]
[1753181543099,0.87910483,118860.0,118850.0,0.03455]
[1753181543397,0.87910483,118860.0,118850.0,0.005]
[1753181544602,0.87910483,118860.0,118850.0,0.01096]
[1753181544802,0.88751222,118860.0,118850.0,0.01096]
[1753181545802,0.87910483,118860.0,118850.0,0.01096]
[1753181548491,0.87910483,118860.0,118850.0,0.005]
[1753181548898,0.88740384,118860.0,118850.0,0.005]
[1753181549397,0.25606341,118860.0,118850.0,0.005]
[1753181549600,0.88740384,118860.0,118850.0,0.005]
[1753181551601,0.87910483,118860.0,118850.0,0.005]
[1753181551808,0.66865802,118860.0,118850.0,0.05786]
[1753181552204,0.2477644,118860.0,118850.0,0.05786]
[1753181552405,0.66865802,118860.0,118850.0,0.05786]
[1753181553302,0.87910483,118860.0,118850.0,0.01096]
[1753181556904,0.2477644,118860.0,118850.0,0.01096]
[1753181557105,0.87910483,118860.0,118850.0,0.03455]
[1753181557708,0.66865802,118860.0,118850.0,0.03455]
[1753181559209,0.87910483,118860.0,118850.0,0.03455]
[1753181560606,0.2477644,118860.0,118850.0,0.03455]
[1753181560814,0.87910483,118860.0,118850.0,0.03455]
[1753181562413,0.66865802,118860.0,118850.0,0.03455]
[1753181562814,0.2477644,118860.0,118850.0,0.03455]
[1753181563013,0.66865802,118860.0,118850.0,0.03455]
[1753181563912,0.2477644,118860.0,118850.0,0.005]
[1753181564213,0.66865802,118860.0,118850.0,0.01101]
[1753181564603,0.87910483,118860.0,118850.0,0.0346]
[1753181565308,0.2477644,118860.0,118850.0,0.0346]
[1753181565817,0.2476344,118860.0,118850.0,0.6217284]
[1753181566316,0.66852802,118860.0,118850.0,1.00899514]
[1753181568004,0.2476344,118860.0,118850.0,1.00899514]
[1753181568207,0.1681944,118860.0,118850.0,1.00899514]
[1753181568409,0.37864121,118860.0,118850.0,1.0641989]
[1753181568613,0.1681943,118860.0,118850.0,1.0641989]
[1753181568817,0.1681943,118860.0,118850.0,1.03408652]
[1753181569016,0.37864111,118860.0,118850.0,1.03408652]
[1753181569818,0.1681943,118860.0,118850.0,1.03408652]
[1753181570016,0.37864111,118860.0,118850.0,1.03408652]
[1753181570221,0.37864111,118860.0,118850.0,1.24453333]
[1753181571119,0.1681943,118860.0,118850.0,1.01898983]
[1753181571510,0.37864111,118860.0,118850.0,1.22943664]
[1753181571719,0.1681943,118860.0,118850.0,1.22943664]
[1753181571922,0.37864111,118860.0,118850.0,1.22943664]
[1753181573017,0.37864111,118860.0,118850.0,1.01898983]
[1753181573217,0.37864111,118860.0,118850.0,1.22943664]
[1753181573918,0.58908792,118860.0,118850.0,1.01898983]
[1753181574422,0.37864111,118860.0,118850.0,1.01898983]
[1753181574623,0.37864111,118860.0,118850.0,1.22943664]
[1753181575122,0.1681943,118860.0,118850.0,1.22943664]
[1753181575524,0.37864111,118860.0,118850.0,1.22943664]
[1753181575724,0.1681943,118860.0,118850.0,1.01898983]
[1753181575926,0.37864111,118860.0,118850.0,1.01898983]
[1753181576225,0.1681943,118860.0,118850.0,1.01898983]
[1753181576426,0.37864111,118860.0,118850.0,1.01898983]
[1753181576726,0.37864111,118860.0,118850.0,1.22943664]
[1753181577420,0.1681943,118860.0,118850.0,1.22943664]
[1753181577626,0.37864111,118860.0,118850.0,1.22943664]
[1753181577920,0.1681943,118860.0,118850.0,1.22943664]
[1753181578323,0.37864111,118860.0,118850.0,1.22943664]
[1753181578523,0.1681943,118860.0,118850.0,1.19932957]
[1753181578725,0.37864111,118860.0,118850.0,0.98888276]
[1753181579322,0.1681943,118860.0,118850.0,0.98888276]
[1753181579624,0.58908792,118860.0,118850.0,0.98888276]
[1753181580124,0.37864111,118860.0,118850.0,0.98888276]
[1753181580727,0.58908792,118860.0,118850.0,0.98888276]
[1753181580927,0.58908792,118860.0,118850.0,1.06419359]
[1753181581730,0.37864111,118860.0,118850.0,1.06419359]
[1753181582129,0.1681943,118860.0,118850.0,1.06419359]
[1753181582331,0.58908792,118860.0,118850.0,1.06419359]
[1753181583626,0.58908792,118860.0,118850.0,1.2746404]
[1753181584928,0.58908792,118860.0,118850.0,1.06419359]
[1753181585930,0.58908792,118860.0,118850.0,1.2746404]
[1753181586130,0.58908792,118860.0,118850.0,1.06419359]
[1753181586936,0.58908792,118860.0,118850.0,1.2746404]
[1753181587135,0.1681943,118860.0,118850.0,1.2746404]
[1753181587337,0.37864111,118860.0,118850.0,1.2746404]
[1753181587531,0.37864111,118860.0,118850.0,1.24453333]
[1753181589037,0.1681943,118860.0,118850.0,1.24453333]
[1753181589238,0.37864111,118860.0,118850.0,1.24453333]
[1753181590538,0.1681943,118860.0,118850.0,1.24453333]
[1753181590733,0.37864111,118860.0,118850.0,1.03408652]
[1753181590942,0.37864111,118860.0,118850.0,1.24453333]
[1753181591841,0.37864111,118860.0,118850.0,1.03408652]
[1753181592043,0.37864111,118860.0,118850.0,1.24453333]
[1753181593343,0.37864111,118860.0,118850.0,1.03408652]
[1753181593542,0.37864111,118860.0,118850.0,1.24453333]
[1753181593938,0.37864111,118860.0,118850.0,1.03408652]
[1753181594142,0.37864111,118860.0,118850.0,1.24453333]
[1753181594444,0.1681943,118860.0,118850.0,1.03408652]
[1753181594646,0.39459111,118860.0,118850.0,1.24453333]
[1753181594843,0.2083143,118860.0,118850.0,1.24453333]
[1753181595042,0.41876111,118860.0,118850.0,1.24453333]
[1753181595242,0.2083143,118860.0,118850.0,1.24453333]
[1753181595446,0.41876111,118860.0,118850.0,1.24453333]
[1753181595650,0.39459111,118860.0,118850.0,1.24453333]
[1753181596352,0.37864111,118860.0,118850.0,1.24453333]
[1753181597149,0.37864111,118860.0,118850.0,1.19932957]
[1753181601056,0.1681943,118860.0,118850.0,1.19932957]
[1753181601251,0.37864111,118860.0,118850.0,1.19932957]
[1753181602556,0.43485111,118860.0,118850.0,1.19932957]
[1753181602755,0.64529792,118860.0,118850.0,0.98888276]
[1753181602952,0.64529792,118860.0,118850.0,1.2445372]
[1753181603753,0.43485111,118860.0,118850.0,1.2445372]
[1753181603955,0.41068111,118860.0,118850.0,1.2445372]
[1753181604755,0.43485111,118860.0,118850.0,1.2445372]
[1753181605055,0.64529792,118860.0,118850.0,1.2445372]
[1753181605955,0.64529792,118860.0,118850.0,1.03409039]
[1753181606456,0.64529792,118860.0,118850.0,1.2445372]
[1753181607457,0.66898792,118860.0,118850.0,1.03409039]
[1753181607651,0.87943473,118860.0,118850.0,1.03409039]
[1753181607854,0.66898792,118860.0,118850.0,0.64588199]
[1753181608056,0.66906792,118860.0,118850.0,0.64588199]
[1753181608560,0.66906792,118860.0,118850.0,0.81409049]
[1753181609958,0.2481743,118860.0,118850.0,0.68409049]
[1753181610160,0.66898792,118860.0,118850.0,1.04409049]
[1753181610961,0.50079362,118860.0,118850.0,1.04409049]
[1753181611156,0.66898792,118860.0,118850.0,1.04409049]
[1753181612458,0.66898792,118860.0,118850.0,0.68409049]
[1753181612657,0.66898792,118860.0,118850.0,1.06409049]
[1753181613161,0.2480943,118860.0,118850.0,1.06409049]
[1753181613360,0.66898792,118860.0,118850.0,1.06409049]
[1753181613560,0.2480943,118860.0,118850.0,1.06409049]
[1753181613763,0.66898792,118860.0,118850.0,1.06409049]
[1753181614562,0.2480943,118860.0,118850.0,1.06409049]
[1753181614760,0.66898792,118860.0,118850.0,0.81409049]
[1753181614961,0.66898792,118860.0,118850.0,1.02409049]
[1753181615460,0.64529792,118860.0,118850.0,1.02409049]
[1753181615662,0.66886792,118860.0,118850.0,0.68482049]
[1753181615862,0.66886792,118860.0,118850.0,1.05482049]
[1753181617666,0.66886792,118860.0,118850.0,0.81482049]
[1753181617962,0.66886792,118860.0,118850.0,0.80482049]
[1753181618369,0.66886792,118860.0,118850.0,1.02482049]
[1753181620867,0.2479743,118860.0,118850.0,1.02482049]
[1753181621169,0.2479743,118860.0,118850.0,1.00973676]
[1753181621368,0.66886792,118860.0,118850.0,1.00973676]
[1753181621868,0.2479743,118860.0,118850.0,1.00973676]
[1753181622059,0.66886792,118860.0,118850.0,1.00973676]
[1753181624169,0.2479743,118860.0,118850.0,1.04973676]
[1753181624370,0.66886792,118860.0,118850.0,1.04973676]
[1753181624665,0.66886792,118860.0,118850.0,0.66973676]
[1753181624866,0.66886792,118860.0,118850.0,0.99973676]
[1753181625973,0.66886792,118860.0,118850.0,0.71973676]
[1753181626176,0.66886792,118860.0,118850.0,1.00973676]
[1753181626778,0.66886792,118860.0,118850.0,0.99380676]
[1753181627572,0.66886792,118860.0,118850.0,1.00998626]
[1753181628373,0.66886792,118860.0,118850.0,0.71998626]
[1753181628572,0.66886792,118860.0,118850.0,0.98998626]
[1753181629372,0.66886792,118860.0,118850.0,0.66998626]
[1753181629568,0.66886792,118860.0,118850.0,0.98998626]
[1753181629973,0.2479743,118860.0,118850.0,0.98998626]
[1753181630272,0.66886792,118860.0,118850.0,0.98998626]
[1753181630976,0.66886792,118860.0,118850.0,1.00506999]
[1753181631368,0.2479743,118860.0,118850.0,1.00506999]
[1753181631567,0.66886792,118860.0,118850.0,1.00506999]
[1753181632372,0.66886792,118860.0,118850.0,0.68506999]
[1753181632872,0.66886792,118860.0,118850.0,1.40586999]
[1753181633072,0.2479743,118860.0,118850.0,1.40586999]
[1753181633474,0.66886792,118860.0,118850.0,1.40586999]
[1753181635376,0.66886792,118860.0,118850.0,1.04586999]
[1753181635571,0.66886792,118860.0,118850.0,1.35586999]
[1753181636176,0.66886792,118860.0,118850.0,1.36586999]
[1753181638078,0.2479743,118860.0,118850.0,1.36586999]
[1753181638279,0.66886792,118860.0,118850.0,1.36586999]
[1753181639278,0.2479743,118860.0,118850.0,1.04586999]
[1753181639480,0.66886792,118860.0,118850.0,1.41586999]
[1753181642382,0.64443792,118860.0,118850.0,1.6263168]
[1753181642576,0.62112792,118860.0,118850.0,1.6263168]
[1753181643275,0.64443792,118860.0,118850.0,1.04586999]
[1753181643486,0.64443792,118860.0,118850.0,1.39586999]
[1753181643782,0.64443792,118860.0,118850.0,1.6063168]
[1753181644277,0.60517792,118860.0,118850.0,1.6063168]
[1753181644584,0.37864111,118860.0,118850.0,1.39586999]
[1753181644978,0.37864111,118860.0,118850.0,1.6063168]
[1753181645176,0.1681943,118860.0,118850.0,1.6063168]
[1753181645475,0.37864111,118860.0,118850.0,1.6063168]
[1753181646982,0.39484111,118860.0,118850.0,1.6063168]
[1753181647386,0.39484111,118860.0,118850.0,1.56110917]
[1753181647586,0.60528792,118860.0,118850.0,1.56110917]
[1753181647785,0.60528792,118860.0,118850.0,1.60630619]
[1753181648686,0.39484111,118860.0,118850.0,1.60630619]
[1753181650689,0.37864111,118860.0,118850.0,1.60630619]
[1753181652290,0.1681943,118860.0,118850.0,1.60630619]
[1753181652493,0.37864111,118860.0,118850.0,1.39585938]
[1753181652792,0.37864111,118860.0,118850.0,1.60630619]
[1753181653090,0.1681943,118860.0,118850.0,1.60630619]
[1753181653286,0.37864111,118860.0,118850.0,1.39585938]
[1753181654090,0.37864111,118860.0,118850.0,0.67425938]
[1753181654293,0.37864111,118860.0,118850.0,1.39585938]
[1753181656090,0.1681943,118860.0,118850.0,1.39585938]
[1753181656290,0.37864111,118860.0,118850.0,1.39585938]
[1753181656789,0.37864111,118860.0,118850.0,1.60630619]
[1753181656991,0.39443111,118860.0,118850.0,1.60630619]
[1753181657290,0.64482792,118860.0,118850.0,1.39585938]
[1753181657593,0.43438111,118860.0,118850.0,1.39585938]
[1753181657791,0.64482792,118860.0,118850.0,1.39585938]
[1753181657992,0.2239343,118860.0,118850.0,1.39585938]
[1753181658394,0.64482792,118860.0,118850.0,1.39585938]
[1753181660993,0.64482792,118860.0,118850.0,1.38075959]
[1753181661594,0.2239343,118860.0,118850.0,1.38075959]
[1753181661787,0.64482792,118860.0,118850.0,1.38075959]
[1753181662184,0.2239343,118860.0,118850.0,1.38075959]
[1753181662393,0.64482792,118860.0,118850.0,1.38075959]
[1753181662793,0.2239343,118860.0,118850.0,1.38075959]
[1753181662995,0.64482792,118860.0,118850.0,1.38075959]
[1753181664094,0.2239343,118860.0,118850.0,1.38075959]
[1753181664290,0.64482792,118860.0,118850.0,1.38075959]
[1753181666098,0.2239343,118860.0,118850.0,1.38075959]
[1753181666297,0.64482792,118860.0,118850.0,1.5912064]
[1753181667099,0.2239343,118860.0,118850.0,1.5912064]
[1753181667392,0.1995043,118860.0,118850.0,1.38075959]
[1753181667601,0.40995111,118860.0,118850.0,1.5912064]
[1753181668198,0.1995043,118860.0,118850.0,1.5912064]
[1753181668398,0.40995111,118860.0,118850.0,1.63640342]
[1753181669398,0.1995043,118860.0,118850.0,1.63640342]
[1753181669698,0.21044681,118860.0,118850.0,1.63640342]
[1753181669899,0.1681943,118860.0,118850.0,1.63640342]
[1753181670094,0.37864111,118860.0,118850.0,1.63640342]
[1753181670495,0.21044681,118860.0,118850.0,1.63640342]
[1753181670696,0.21064681,118870.0,118860.0,0.2586343]
[1753181671006,0.37862691,118870.0,118860.0,1.18507813]
[1753181671798,0.21044681,118870.0,118860.0,0.97463132]